[Event "*** Titled Tuesday Blitz"]
[Site "Chess.com"]
[Date "2021.04.06"]
[Round "5"]
[White "Boorchess"]
[Black "MoreChessJulia"]
[Result "1-0"]
[WhiteElo "2544"]
[BlackElo "2118"]
[TimeControl "180+1"]
[EndTime "10:53:49 PDT"]
[Termination "Boorchess won by resignation"]

1. Nf3 {[%clk 0:03:00.9]} 1... g6 {[%clk 0:02:58.9]} 2. d4 {[%clk 0:03:00.4]}
2... Bg7 {[%clk 0:02:58.9]} 3. Bf4 {[%clk 0:02:59.8]} 3... c5 {[%clk 0:02:58.5]}
4. c3 {[%clk 0:02:58.4]} 4... Qb6 {[%clk 0:02:57.7]} 5. Qb3 {[%clk 0:02:56.8]}
5... d5 {[%clk 0:02:52.2]} 6. e3 {[%clk 0:02:55.5]} 6... c4 {[%clk 0:02:51.6]}
7. Qc2 {[%clk 0:02:55.5]} 7... Bf5 {[%clk 0:02:50.2]} 8. Qc1 {[%clk 0:02:54.8]}
8... Nf6 {[%clk 0:02:48.1]} 9. Nbd2 {[%clk 0:02:54.5]} 9... Nbd7 {[%clk
0:02:46.1]} 10. h3 {[%clk 0:02:54.7]} 10... Ne4 {[%clk 0:02:45.3]} 11. g4 {[%clk
0:02:46.7]} 11... Nxd2 {[%clk 0:02:44.5]} 12. Nxd2 {[%clk 0:02:45.3]} 12... Be6
{[%clk 0:02:42.6]} 13. Bg2 {[%clk 0:02:44.7]} 13... f5 {[%clk 0:02:40.6]} 14. g5
{[%clk 0:02:43]} 14... Bf7 {[%clk 0:02:37.2]} 15. Nf3 {[%clk 0:02:37.8]} 15...
e6 {[%clk 0:02:36.3]} 16. h4 {[%clk 0:02:36.4]} 16... O-O-O {[%clk 0:02:30.5]}
17. b3 {[%clk 0:02:33.1]} 17... cxb3 {[%clk 0:02:29.6]} 18. axb3 {[%clk
0:02:31.9]} 18... a6 {[%clk 0:02:29.8]} 19. c4 {[%clk 0:02:27.6]} 19... Qc6
{[%clk 0:02:27.5]} 20. O-O {[%clk 0:02:23.6]} 20... dxc4 {[%clk 0:02:24.1]} 21.
Ne5 {[%clk 0:02:19.7]} 21... Nxe5 {[%clk 0:02:20]} 22. Bxc6 {[%clk 0:02:17.7]}
22... Nxc6 {[%clk 0:02:17.3]} 23. Qxc4 {[%clk 0:02:16.2]} 23... Kd7 {[%clk
0:02:14.2]} 24. Qc5 {[%clk 0:02:07.1]} 24... Bf8 {[%clk 0:02:13.1]} 25. Qb6
{[%clk 0:02:07.2]} 25... Kc8 {[%clk 0:02:03.7]} 26. Rxa6 {[%clk 0:02:00.6]}
26... Bd6 {[%clk 0:02:01.8]} 27. Ra8+ {[%clk 0:01:57.1]} 27... Nb8 {[%clk
0:02:01.4]} 28. Rc1+ {[%clk 0:01:53.6]} 28... Kd7 {[%clk 0:01:59.8]} 29. Qxd6+
{[%clk 0:01:52.2]} 1-0

[Event "*** Titled Tuesday Blitz"]
[Site "Chess.com"]
[Date "2021.04.06"]
[Round "5"]
[White "Alexander_Moskalenko"]
[Black "Brave_spirit12"]
[Result "1-0"]
[WhiteElo "2746"]
[BlackElo "2561"]
[TimeControl "180+1"]
[EndTime "10:53:54 PDT"]
[Termination "Alexander_Moskalenko won by resignation"]

1. e4 {[%clk 0:03:00.9]} 1... e6 {[%clk 0:02:48]} 2. d4 {[%clk 0:02:56]} 2... d5
{[%clk 0:02:48.9]} 3. Nc3 {[%clk 0:02:56.9]} 3... Nf6 {[%clk 0:02:43.2]} 4. e5
{[%clk 0:02:54.4]} 4... Nfd7 {[%clk 0:02:42.7]} 5. Nce2 {[%clk 0:02:55]} 5... c5
{[%clk 0:02:42.9]} 6. c3 {[%clk 0:02:54.6]} 6... Nc6 {[%clk 0:02:43.5]} 7. Nf3
{[%clk 0:02:54.8]} 7... Qb6 {[%clk 0:02:43.6]} 8. a3 {[%clk 0:02:51]} 8... f6
{[%clk 0:02:43.2]} 9. Nf4 {[%clk 0:02:50.7]} 9... Ne7 {[%clk 0:02:38.1]} 10. Bd3
{[%clk 0:02:45.5]} 10... c4 {[%clk 0:02:33.1]} 11. Bc2 {[%clk 0:02:45.2]} 11...
fxe5 {[%clk 0:02:29.8]} 12. Nxe5 {[%clk 0:02:45.2]} 12... Nxe5 {[%clk
0:02:29.9]} 13. dxe5 {[%clk 0:02:46.1]} 13... g6 {[%clk 0:02:30.6]} 14. h4
{[%clk 0:02:32.1]} 14... Bg7 {[%clk 0:02:29.2]} 15. h5 {[%clk 0:02:32.6]} 15...
g5 {[%clk 0:02:28.1]} 16. h6 {[%clk 0:02:32.2]} 16... Bxe5 {[%clk 0:02:25.4]}
17. Qh5+ {[%clk 0:02:32.8]} 17... Kd8 {[%clk 0:02:17.2]} 18. Qxg5 {[%clk
0:02:32.5]} 18... Qc7 {[%clk 0:02:00.9]} 19. Rh5 {[%clk 0:02:29.2]} 19... Bd6
{[%clk 0:01:57.8]} 20. Qf6 {[%clk 0:02:19.3]} 20... Re8 {[%clk 0:01:55.2]} 21.
Bxh7 {[%clk 0:02:17.2]} 21... Kd7 {[%clk 0:01:41]} 22. Bc2 {[%clk 0:02:05.2]}
22... Ng8 {[%clk 0:01:34]} 23. Ba4+ {[%clk 0:02:04.4]} 1-0

[Event "*** Titled Tuesday Blitz"]
[Site "Chess.com"]
[Date "2021.04.06"]
[Round "5"]
[White "FairChess_on_YouTube"]
[Black "kirillshevchenko"]
[Result "1-0"]
[WhiteElo "3014"]
[BlackElo "2829"]
[TimeControl "180+1"]
[EndTime "10:54:17 PDT"]
[Termination "FairChess_on_YouTube won by resignation"]

1. e4 {[%clk 0:03:00.9]} 1... c5 {[%clk 0:02:58.3]} 2. Nf3 {[%clk 0:02:59.5]}
2... d6 {[%clk 0:02:58.5]} 3. d4 {[%clk 0:02:59.5]} 3... cxd4 {[%clk 0:02:58.5]}
4. Nxd4 {[%clk 0:03:00.4]} 4... Nf6 {[%clk 0:02:58.5]} 5. Nc3 {[%clk 0:03:00.5]}
5... a6 {[%clk 0:02:59.1]} 6. a4 {[%clk 0:03:00.1]} 6... e5 {[%clk 0:02:56.4]}
7. Nf3 {[%clk 0:03:00.1]} 7... Qc7 {[%clk 0:02:55.1]} 8. Bg5 {[%clk 0:02:58.9]}
8... Nbd7 {[%clk 0:02:54]} 9. Nd2 {[%clk 0:02:57.7]} 9... h6 {[%clk 0:02:54]}
10. Bh4 {[%clk 0:02:57.7]} 10... g5 {[%clk 0:02:54.4]} 11. Bg3 {[%clk
0:02:57.4]} 11... Nc5 {[%clk 0:02:55.1]} 12. h4 {[%clk 0:02:45.7]} 12... Bg7
{[%clk 0:02:52.2]} 13. hxg5 {[%clk 0:02:43.4]} 13... hxg5 {[%clk 0:02:52.1]} 14.
Rxh8+ {[%clk 0:02:44.1]} 14... Bxh8 {[%clk 0:02:53]} 15. f3 {[%clk 0:01:56.8]}
15... Be6 {[%clk 0:02:49]} 16. Bf2 {[%clk 0:01:57.1]} 16... Rd8 {[%clk
0:02:43.4]} 17. b4 {[%clk 0:01:28.6]} 17... Ncd7 {[%clk 0:02:37.8]} 18. Ra3
{[%clk 0:01:28.5]} 18... Nb6 {[%clk 0:02:31.5]} 19. a5 {[%clk 0:01:25.8]} 19...
Nc4 {[%clk 0:02:31.8]} 20. Bxc4 {[%clk 0:01:20.5]} 20... Bxc4 {[%clk 0:02:31.8]}
21. Bb6 {[%clk 0:01:19.7]} 21... Qc6 {[%clk 0:02:16.8]} 22. Bxd8 {[%clk
0:01:17.6]} 22... Be6 {[%clk 0:02:15.7]} 23. Bxf6 {[%clk 0:01:15.2]} 23... Bxf6
{[%clk 0:02:15.5]} 24. Nd5 {[%clk 0:01:11.5]} 24... Bxd5 {[%clk 0:02:07.7]} 25.
exd5 {[%clk 0:01:12.4]} 25... Qb5 {[%clk 0:02:05.8]} 26. c4 {[%clk 0:01:10]} 1-0

[Event "*** Titled Tuesday Blitz"]
[Site "Chess.com"]
[Date "2021.04.06"]
[Round "5"]
[White "mishanick"]
[Black "KrolPawel92OnTwitch"]
[Result "1-0"]
[WhiteElo "2938"]
[BlackElo "2651"]
[TimeControl "180+1"]
[EndTime "10:54:39 PDT"]
[Termination "mishanick won by checkmate"]

1. e4 {[%clk 0:03:00.9]} 1... c5 {[%clk 0:02:57.6]} 2. Nf3 {[%clk 0:03:01.3]}
2... e6 {[%clk 0:02:56.5]} 3. d4 {[%clk 0:03:00.5]} 3... cxd4 {[%clk 0:02:56.8]}
4. Nxd4 {[%clk 0:03:01.4]} 4... Qb6 {[%clk 0:02:56.7]} 5. Nb3 {[%clk 0:03:00.6]}
5... Nf6 {[%clk 0:02:56.3]} 6. Bd3 {[%clk 0:02:46.5]} 6... d5 {[%clk 0:02:56.1]}
7. Nc3 {[%clk 0:02:36.5]} 7... Bb4 {[%clk 0:02:55.4]} 8. exd5 {[%clk 0:02:37]}
8... Nxd5 {[%clk 0:02:53.1]} 9. Bd2 {[%clk 0:02:36.5]} 9... Nxc3 {[%clk
0:02:52.7]} 10. bxc3 {[%clk 0:02:37.4]} 10... Bd6 {[%clk 0:02:52.6]} 11. O-O
{[%clk 0:02:36.6]} 11... O-O {[%clk 0:02:49.4]} 12. c4 {[%clk 0:02:29.4]} 12...
Qc7 {[%clk 0:02:44.1]} 13. Qh5 {[%clk 0:02:20]} 13... g6 {[%clk 0:02:43.9]} 14.
Qh4 {[%clk 0:02:20.2]} 14... Be5 {[%clk 0:02:43.9]} 15. Rae1 {[%clk 0:02:18.4]}
15... Nc6 {[%clk 0:02:40]} 16. Bh6 {[%clk 0:02:11.2]} 16... Bg7 {[%clk
0:02:39.6]} 17. Re3 {[%clk 0:02:02.9]} 17... e5 {[%clk 0:02:37.9]} 18. f4 {[%clk
0:01:55.7]} 18... exf4 {[%clk 0:02:25.1]} 19. Bxf4 {[%clk 0:01:46.5]} 19... Qb6
{[%clk 0:02:20]} 20. c5 {[%clk 0:01:45.5]} 20... Qb4 {[%clk 0:02:19.8]} 21. Re4
{[%clk 0:01:40.5]} 21... Qc3 {[%clk 0:02:18.2]} 22. Bd6 {[%clk 0:01:40.3]} 22...
Rd8 {[%clk 0:02:06]} 23. Rxf7 {[%clk 0:01:11.8]} 23... Bf5 {[%clk 0:01:57]} 24.
Bc4 {[%clk 0:00:51.1]} 24... Bxe4 {[%clk 0:01:56.8]} 25. Rf8# {[%clk 0:00:49.2]}
1-0

[Event "*** Titled Tuesday Blitz"]
[Site "Chess.com"]
[Date "2021.04.06"]
[Round "5"]
[White "kingnb"]
[Black "Darius321"]
[Result "1-0"]
[WhiteElo "2578"]
[BlackElo "2282"]
[TimeControl "180+1"]
[EndTime "10:54:41 PDT"]
[Termination "kingnb won by resignation"]

1. d4 {[%clk 0:03:00.9]} 1... d5 {[%clk 0:02:59.5]} 2. Nf3 {[%clk 0:03:01.8]}
2... e6 {[%clk 0:02:59.6]} 3. e3 {[%clk 0:03:02.1]} 3... c5 {[%clk 0:02:59.8]}
4. c3 {[%clk 0:03:01.8]} 4... Nc6 {[%clk 0:02:59.8]} 5. Nbd2 {[%clk 0:03:02.2]}
5... Nf6 {[%clk 0:02:59.5]} 6. Bd3 {[%clk 0:03:02.6]} 6... Bd6 {[%clk
0:02:58.9]} 7. O-O {[%clk 0:03:03.1]} 7... O-O {[%clk 0:02:58.3]} 8. Qe2 {[%clk
0:03:03.6]} 8... e5 {[%clk 0:02:56.9]} 9. dxc5 {[%clk 0:03:03.6]} 9... Bxc5
{[%clk 0:02:55.6]} 10. e4 {[%clk 0:03:04.5]} 10... d4 {[%clk 0:02:38.3]} 11. Nb3
{[%clk 0:03:03.7]} 11... Bb6 {[%clk 0:02:37.1]} 12. cxd4 {[%clk 0:03:03.5]}
12... Nxd4 {[%clk 0:02:10.1]} 13. Nbxd4 {[%clk 0:02:58.3]} 13... Bxd4 {[%clk
0:02:07.7]} 14. Nxd4 {[%clk 0:02:58]} 14... Qxd4 {[%clk 0:02:04.4]} 15. Be3
{[%clk 0:02:58]} 15... Qa4 {[%clk 0:02:01.8]} 16. Bc5 {[%clk 0:02:49.8]} 16...
Rd8 {[%clk 0:01:50.4]} 17. Be7 {[%clk 0:02:49.4]} 17... Rd4 {[%clk 0:01:48.5]}
18. Bb5 {[%clk 0:02:26.1]} 18... Rxe4 {[%clk 0:01:41.4]} 19. Qd3 {[%clk
0:02:18]} 19... Rd4 {[%clk 0:01:35.7]} 20. Qe2 {[%clk 0:02:17.5]} 20... Re4
{[%clk 0:01:35.6]} 21. Qd3 {[%clk 0:02:08.3]} 21... Rd4 {[%clk 0:01:35.5]} 22.
Qg3 {[%clk 0:01:27.5]} 22... Qxb5 {[%clk 0:01:26.8]} 23. Bxf6 {[%clk 0:01:27.5]}
23... Rg4 {[%clk 0:01:26.3]} 24. Qxe5 {[%clk 0:01:24.7]} 24... gxf6 {[%clk
0:01:25.1]} 25. Qxb5 {[%clk 0:01:24.1]} 1-0

[Event "*** Titled Tuesday Blitz"]
[Site "Chess.com"]
[Date "2021.04.06"]
[Round "5"]
[White "The_Machine04"]
[Black "tusplingher"]
[Result "0-1"]
[WhiteElo "2431"]
[BlackElo "2328"]
[TimeControl "180+1"]
[EndTime "10:54:42 PDT"]
[Termination "tusplingher won by resignation"]

1. d4 {[%clk 0:03:00.9]} 1... Nf6 {[%clk 0:02:59.5]} 2. Bg5 {[%clk 0:03:00.1]}
2... Ne4 {[%clk 0:02:59]} 3. Bf4 {[%clk 0:03:00.3]} 3... c5 {[%clk 0:02:57.8]}
4. f3 {[%clk 0:03:00.4]} 4... Nf6 {[%clk 0:02:57.5]} 5. dxc5 {[%clk 0:02:59.1]}
5... Qa5+ {[%clk 0:02:55.6]} 6. Nc3 {[%clk 0:02:59]} 6... Qxc5 {[%clk
0:02:55.4]} 7. e4 {[%clk 0:02:59]} 7... Nc6 {[%clk 0:02:54.6]} 8. Qd2 {[%clk
0:02:59.3]} 8... g6 {[%clk 0:02:53.8]} 9. O-O-O {[%clk 0:02:58]} 9... Bg7 {[%clk
0:02:52.7]} 10. Bh6 {[%clk 0:02:55.3]} 10... O-O {[%clk 0:02:43.2]} 11. h4
{[%clk 0:02:54.3]} 11... Nh5 {[%clk 0:02:34.3]} 12. Nge2 {[%clk 0:02:50.2]}
12... b5 {[%clk 0:02:31.2]} 13. g4 {[%clk 0:02:48.6]} 13... Nf6 {[%clk 0:02:27]}
14. h5 {[%clk 0:02:47.8]} 14... b4 {[%clk 0:02:24.9]} 15. Bxg7 {[%clk
0:02:42.9]} 15... Kxg7 {[%clk 0:02:24.3]} 16. hxg6 {[%clk 0:02:40]} 16... fxg6
{[%clk 0:02:23.2]} 17. Qh6+ {[%clk 0:02:39.2]} 17... Kg8 {[%clk 0:02:22.7]} 18.
Nd5 {[%clk 0:02:39.5]} 18... Rf7 {[%clk 0:02:19.1]} 19. Nef4 {[%clk 0:02:25.4]}
19... Nxd5 {[%clk 0:02:09.1]} 20. Rxd5 {[%clk 0:02:19]} 20... Qe3+ {[%clk
0:02:07.1]} 21. Rd2 {[%clk 0:02:07.7]} 21... Qxf4 {[%clk 0:02:05.9]} 22. Qh4
{[%clk 0:02:06.5]} 22... Ne5 {[%clk 0:01:42.9]} 23. Be2 {[%clk 0:02:02.6]} 23...
Ba6 {[%clk 0:01:31]} 24. Bd1 {[%clk 0:01:50.9]} 24... Rc8 {[%clk 0:01:24.3]} 25.
Rh3 {[%clk 0:01:40.7]} 25... Nd3+ {[%clk 0:01:19.7]} 26. Kb1 {[%clk 0:01:37.5]}
26... Qxd2 {[%clk 0:01:19.3]} 0-1

[Event "*** Titled Tuesday Blitz"]
[Site "Chess.com"]
[Date "2021.04.06"]
[Round "5"]
[White "Diaschess88"]
[Black "PrinceMurad09"]
[Result "1-0"]
[WhiteElo "2410"]
[BlackElo "2530"]
[TimeControl "180+1"]
[EndTime "10:55:08 PDT"]
[Termination "Diaschess88 won by resignation"]

1. d4 {[%clk 0:03:00.9]} 1... Nf6 {[%clk 0:02:59.9]} 2. c4 {[%clk 0:03:01.3]}
2... c5 {[%clk 0:03:00.2]} 3. Nf3 {[%clk 0:02:51.2]} 3... cxd4 {[%clk
0:02:59.5]} 4. Nxd4 {[%clk 0:02:52.1]} 4... e5 {[%clk 0:02:59.6]} 5. Nc2 {[%clk
0:02:48.7]} 5... d5 {[%clk 0:02:59.5]} 6. cxd5 {[%clk 0:02:46.6]} 6... Nxd5
{[%clk 0:03:00.4]} 7. e4 {[%clk 0:02:43.5]} 7... Nb6 {[%clk 0:03:00.1]} 8. Qxd8+
{[%clk 0:02:42.6]} 8... Kxd8 {[%clk 0:03:01]} 9. Nc3 {[%clk 0:02:41.7]} 9... a6
{[%clk 0:02:59.8]} 10. Be3 {[%clk 0:02:41.4]} 10... N8d7 {[%clk 0:02:53.7]} 11.
O-O-O {[%clk 0:02:39.6]} 11... Kc7 {[%clk 0:02:54.1]} 12. a4 {[%clk 0:02:27.8]}
12... Nf6 {[%clk 0:02:39.6]} 13. a5 {[%clk 0:02:24.8]} 13... Nbd7 {[%clk
0:02:39.9]} 14. f3 {[%clk 0:02:19.8]} 14... Bc5 {[%clk 0:02:37.9]} 15. Bc4
{[%clk 0:02:18.7]} 15... Rf8 {[%clk 0:02:32.8]} 16. b4 {[%clk 0:02:15.4]} 16...
Bxe3+ {[%clk 0:02:14.9]} 17. Nxe3 {[%clk 0:02:16.3]} 17... b5 {[%clk 0:02:15.5]}
18. Ncd5+ {[%clk 0:02:05]} 18... Nxd5 {[%clk 0:02:14.2]} 19. Bxd5 {[%clk
0:01:56.8]} 19... Ra7 {[%clk 0:02:13.8]} 20. Kb2 {[%clk 0:01:56.4]} 20... Kb8
{[%clk 0:02:12.6]} 21. Rd2 {[%clk 0:01:51.1]} 21... Nf6 {[%clk 0:02:12.3]} 22.
Rc1 {[%clk 0:01:49]} 22... Be6 {[%clk 0:02:11.8]} 23. Rc6 {[%clk 0:01:44.3]}
23... Rc8 {[%clk 0:02:03.6]} 24. Rxc8+ {[%clk 0:01:32.5]} 24... Kxc8 {[%clk
0:02:02.9]} 25. Bxe6+ {[%clk 0:01:32.4]} 25... fxe6 {[%clk 0:02:02]} 26. Rd6
{[%clk 0:01:32.2]} 26... Rd7 {[%clk 0:01:59.4]} 27. Rxe6 {[%clk 0:01:27.5]}
27... Rd3 {[%clk 0:01:58.6]} 28. Nf5 {[%clk 0:01:09.8]} 28... Rd2+ {[%clk
0:01:57.7]} 29. Kc3 {[%clk 0:01:09.2]} 29... Rxg2 {[%clk 0:01:56.9]} 30. Rxa6
{[%clk 0:01:06.5]} 30... Rxh2 {[%clk 0:01:53.8]} 31. Nd6+ {[%clk 0:01:06.3]}
31... Kb8 {[%clk 0:01:47.9]} 32. Rb6+ {[%clk 0:01:04.7]} 32... Kc7 {[%clk
0:01:43.8]} 33. Nxb5+ {[%clk 0:01:04.3]} 33... Kd7 {[%clk 0:01:44]} 34. a6
{[%clk 0:01:04.3]} 1-0

[Event "*** Titled Tuesday Blitz"]
[Site "Chess.com"]
[Date "2021.04.06"]
[Round "5"]
[White "EvilMorty23"]
[Black "GelmanAlexander"]
[Result "0-1"]
[WhiteElo "2454"]
[BlackElo "2649"]
[TimeControl "180+1"]
[EndTime "10:55:14 PDT"]
[Termination "GelmanAlexander won by resignation"]

1. e4 {[%clk 0:03:00.9]} 1... c5 {[%clk 0:02:59.8]} 2. Nf3 {[%clk 0:03:00.9]}
2... e6 {[%clk 0:02:59.7]} 3. c3 {[%clk 0:03:00.9]} 3... Nc6 {[%clk 0:02:58.9]}
4. d4 {[%clk 0:03:00.9]} 4... d5 {[%clk 0:02:59.3]} 5. e5 {[%clk 0:03:01.2]}
5... Bd7 {[%clk 0:02:58.9]} 6. a3 {[%clk 0:02:58.8]} 6... f6 {[%clk 0:02:58.5]}
7. b4 {[%clk 0:02:55.7]} 7... fxe5 {[%clk 0:02:47.7]} 8. dxe5 {[%clk 0:02:53.6]}
8... c4 {[%clk 0:02:42]} 9. Bf4 {[%clk 0:02:44.3]} 9... Nh6 {[%clk 0:02:25]} 10.
Bxh6 {[%clk 0:02:37.2]} 10... gxh6 {[%clk 0:02:24.8]} 11. Nbd2 {[%clk
0:02:36.4]} 11... Bg7 {[%clk 0:02:22.3]} 12. Be2 {[%clk 0:02:34]} 12... Qc7
{[%clk 0:02:13.7]} 13. O-O {[%clk 0:02:33.8]} 13... O-O-O {[%clk 0:02:13.3]} 14.
Bxc4 {[%clk 0:02:16.3]} 14... dxc4 {[%clk 0:02:06.6]} 15. Nxc4 {[%clk
0:02:17.2]} 15... Kb8 {[%clk 0:02:05.7]} 16. Qe2 {[%clk 0:02:15.1]} 16... Ne7
{[%clk 0:01:59]} 17. Nd6 {[%clk 0:02:13.4]} 17... Rhf8 {[%clk 0:01:46.7]} 18. c4
{[%clk 0:02:13.4]} 18... Bc6 {[%clk 0:01:46.6]} 19. Nd4 {[%clk 0:02:11.3]} 19...
Bxe5 {[%clk 0:01:34.6]} 20. c5 {[%clk 0:02:01]} 20... Bxd4 {[%clk 0:01:30.8]}
21. Rad1 {[%clk 0:02:01]} 21... Nf5 {[%clk 0:01:24.8]} 22. Qxe6 {[%clk
0:01:58.2]} 22... Nxd6 {[%clk 0:01:20]} 23. Rxd4 {[%clk 0:01:53.2]} 23... Nb5
{[%clk 0:01:13.8]} 24. Rh4 {[%clk 0:01:47.8]} 24... Qg7 {[%clk 0:01:07.9]} 25.
f3 {[%clk 0:01:45.1]} 25... Nd4 {[%clk 0:01:04.7]} 26. Rxd4 {[%clk 0:01:35.4]}
26... Qxd4+ {[%clk 0:01:03.8]} 27. Kh1 {[%clk 0:01:35.5]} 27... Qf2 {[%clk
0:00:57.9]} 28. Rg1 {[%clk 0:01:32.8]} 28... Rxf3 {[%clk 0:00:55]} 29. Qe7
{[%clk 0:01:26.9]} 29... Qxg1+ {[%clk 0:00:53.4]} 0-1

[Event "*** Titled Tuesday Blitz"]
[Site "Chess.com"]
[Date "2021.04.06"]
[Round "5"]
[White "SHIVACalypso"]
[Black "barbara25"]
[Result "1-0"]
[WhiteElo "2404"]
[BlackElo "2186"]
[TimeControl "180+1"]
[EndTime "10:55:20 PDT"]
[Termination "SHIVACalypso won by resignation"]

1. Nf3 {[%clk 0:03:00.9]} 1... Nf6 {[%clk 0:02:59.4]} 2. c4 {[%clk 0:02:58.9]}
2... e6 {[%clk 0:02:58.9]} 3. g3 {[%clk 0:02:58.2]} 3... d5 {[%clk 0:02:56.8]}
4. Bg2 {[%clk 0:02:58.5]} 4... Be7 {[%clk 0:02:54.6]} 5. O-O {[%clk 0:02:58.9]}
5... c6 {[%clk 0:02:53.9]} 6. d4 {[%clk 0:02:58]} 6... O-O {[%clk 0:02:52.6]} 7.
Nc3 {[%clk 0:02:58.1]} 7... Nbd7 {[%clk 0:02:47.3]} 8. Nd2 {[%clk 0:02:55.8]}
8... b6 {[%clk 0:02:46.5]} 9. e4 {[%clk 0:02:56.2]} 9... dxe4 {[%clk 0:02:45.8]}
10. Ndxe4 {[%clk 0:02:57.1]} 10... Nxe4 {[%clk 0:02:46]} 11. Nxe4 {[%clk
0:02:58]} 11... Bb7 {[%clk 0:02:46.2]} 12. Be3 {[%clk 0:02:58.3]} 12... Nf6
{[%clk 0:02:44.8]} 13. Qc2 {[%clk 0:02:58]} 13... Qc7 {[%clk 0:02:42.2]} 14.
Rfd1 {[%clk 0:02:56.2]} 14... c5 {[%clk 0:02:37.7]} 15. Nxf6+ {[%clk 0:02:43.8]}
15... Bxf6 {[%clk 0:02:36.5]} 16. Bxb7 {[%clk 0:02:44.3]} 16... Qxb7 {[%clk
0:02:36.6]} 17. dxc5 {[%clk 0:02:43.6]} 17... bxc5 {[%clk 0:02:37]} 18. Bxc5
{[%clk 0:02:43.7]} 18... Rfc8 {[%clk 0:02:37.5]} 19. Bd4 {[%clk 0:02:43.8]}
19... Bxd4 {[%clk 0:02:36.7]} 20. Rxd4 {[%clk 0:02:44.7]} 20... a5 {[%clk
0:02:37]} 21. Rad1 {[%clk 0:02:43.1]} 21... a4 {[%clk 0:02:36.9]} 22. Qxa4
{[%clk 0:02:34.3]} 22... h6 {[%clk 0:02:33.7]} 23. Qb3 {[%clk 0:02:28.3]} 23...
Qa6 {[%clk 0:02:32.6]} 24. a3 {[%clk 0:02:25.6]} 24... Rab8 {[%clk 0:02:32.8]}
25. Qc3 {[%clk 0:02:24.2]} 25... e5 {[%clk 0:02:29.4]} 26. Rd6 {[%clk
0:02:23.2]} 26... Qb7 {[%clk 0:02:21.5]} 27. b4 {[%clk 0:02:21]} 27... Qa7
{[%clk 0:02:21.2]} 28. c5 {[%clk 0:02:20.7]} 28... Qe7 {[%clk 0:02:19.7]} 29. c6
{[%clk 0:02:17.7]} 29... Ra8 {[%clk 0:02:19.4]} 30. b5 {[%clk 0:02:15.8]} 30...
Qc7 {[%clk 0:02:18.3]} 31. Rd7 {[%clk 0:02:11.9]} 31... Qb6 {[%clk 0:02:18.1]}
32. Qb4 {[%clk 0:02:03.7]} 32... Rab8 {[%clk 0:01:59.3]} 33. R1d5 {[%clk
0:01:43.7]} 33... e4 {[%clk 0:01:56.6]} 34. Re5 {[%clk 0:01:36.9]} 34... Re8
{[%clk 0:01:49.9]} 35. Qxe4 {[%clk 0:01:29.2]} 35... Rf8 {[%clk 0:01:45.9]} 36.
a4 {[%clk 0:01:25.2]} 36... Qa5 {[%clk 0:01:45.2]} 37. Ree7 {[%clk 0:01:23.4]}
37... Qc3 {[%clk 0:01:38.9]} 38. c7 {[%clk 0:01:17.8]} 38... Rbc8 {[%clk
0:01:38.2]} 39. b6 {[%clk 0:01:17.2]} 39... Qb2 {[%clk 0:01:29.4]} 40. b7 {[%clk
0:01:13.7]} 1-0

[Event "*** Titled Tuesday Blitz"]
[Site "Chess.com"]
[Date "2021.04.06"]
[Round "5"]
[White "colegiodemadrid"]
[Black "GMJustin"]
[Result "1-0"]
[WhiteElo "2493"]
[BlackElo "2286"]
[TimeControl "180+1"]
[EndTime "10:55:26 PDT"]
[Termination "colegiodemadrid won on time"]

1. Nf3 {[%clk 0:02:59.7]} 1... d5 {[%clk 0:02:55.4]} 2. c4 {[%clk 0:02:58.3]}
2... d4 {[%clk 0:02:53.5]} 3. b4 {[%clk 0:02:57.4]} 3... f6 {[%clk 0:02:46.4]}
4. e3 {[%clk 0:02:55.8]} 4... e5 {[%clk 0:02:46.3]} 5. Nxe5 {[%clk 0:02:38.3]}
5... fxe5 {[%clk 0:02:38.9]} 6. Qh5+ {[%clk 0:02:38.1]} 6... Ke7 {[%clk
0:02:13.9]} 7. Qxe5+ {[%clk 0:02:25.2]} 7... Be6 {[%clk 0:02:12.8]} 8. Qxd4
{[%clk 0:02:21.6]} 8... Qxd4 {[%clk 0:01:39.9]} 9. exd4 {[%clk 0:02:22.5]} 9...
c6 {[%clk 0:01:39.5]} 10. Nc3 {[%clk 0:02:15.3]} 10... Nf6 {[%clk 0:01:39.1]}
11. Be2 {[%clk 0:02:13.6]} 11... Kf7 {[%clk 0:01:37.5]} 12. Rb1 {[%clk 0:02:13]}
12... Be7 {[%clk 0:01:32.2]} 13. d3 {[%clk 0:02:10.5]} 13... Rd8 {[%clk
0:01:26.8]} 14. Be3 {[%clk 0:02:10.3]} 14... Ng4 {[%clk 0:01:09.2]} 15. b5
{[%clk 0:02:06.8]} 15... Nxe3 {[%clk 0:00:30.6]} 16. fxe3 {[%clk 0:02:07.7]}
16... Nd7 {[%clk 0:00:30.6]} 17. bxc6 {[%clk 0:02:04.4]} 17... bxc6 {[%clk
0:00:30.2]} 18. d5 {[%clk 0:02:00.8]} 18... cxd5 {[%clk 0:00:28.3]} 19. cxd5
{[%clk 0:02:01.6]} 19... Bf5 {[%clk 0:00:26.7]} 20. O-O {[%clk 0:02:00.1]} 20...
g6 {[%clk 0:00:18.6]} 21. e4 {[%clk 0:01:58.4]} 21... Bf6 {[%clk 0:00:18.4]} 22.
Nb5 {[%clk 0:01:55.4]} 22... Nb6 {[%clk 0:00:02]} 23. g4 {[%clk 0:01:51.1]} 1-0

[Event "*** Titled Tuesday Blitz"]
[Site "Chess.com"]
[Date "2021.04.06"]
[Round "5"]
[White "Oglob71"]
[Black "LawrenceTrent"]
[Result "0-1"]
[WhiteElo "2380"]
[BlackElo "2555"]
[TimeControl "180+1"]
[EndTime "10:55:40 PDT"]
[Termination "LawrenceTrent won on time"]

1. Nf3 {[%clk 0:02:59.4]} 1... Nf6 {[%clk 0:02:48]} 2. d4 {[%clk 0:02:58.6]}
2... g6 {[%clk 0:02:44.1]} 3. c4 {[%clk 0:02:58.2]} 3... Bg7 {[%clk 0:02:40.9]}
4. Nc3 {[%clk 0:02:58]} 4... d6 {[%clk 0:02:38.5]} 5. Bg5 {[%clk 0:02:57.6]}
5... O-O {[%clk 0:02:38.2]} 6. e3 {[%clk 0:02:57.2]} 6... c5 {[%clk 0:02:36.9]}
7. d5 {[%clk 0:02:56.4]} 7... e6 {[%clk 0:02:37.5]} 8. h3 {[%clk 0:02:54]} 8...
exd5 {[%clk 0:02:37.7]} 9. cxd5 {[%clk 0:02:54.5]} 9... Nbd7 {[%clk 0:02:37]}
10. Be2 {[%clk 0:02:53.2]} 10... h6 {[%clk 0:02:35]} 11. Bf4 {[%clk 0:02:53.2]}
11... Qe7 {[%clk 0:02:33.4]} 12. O-O {[%clk 0:02:52.3]} 12... Ne8 {[%clk
0:02:32.5]} 13. a4 {[%clk 0:02:43.6]} 13... Ne5 {[%clk 0:02:20.9]} 14. Nxe5
{[%clk 0:02:43.6]} 14... dxe5 {[%clk 0:02:16.9]} 15. Bh2 {[%clk 0:02:43.6]}
15... Nd6 {[%clk 0:02:17]} 16. Nb5 {[%clk 0:02:40.3]} 16... a6 {[%clk
0:02:11.9]} 17. Nxd6 {[%clk 0:02:37.9]} 17... Qxd6 {[%clk 0:02:12.8]} 18. a5
{[%clk 0:02:37.5]} 18... Bd7 {[%clk 0:02:12.8]} 19. e4 {[%clk 0:02:36.7]} 19...
Rac8 {[%clk 0:02:08.6]} 20. Bc4 {[%clk 0:02:32.2]} 20... f5 {[%clk 0:02:05.6]}
21. Qc2 {[%clk 0:02:31.1]} 21... f4 {[%clk 0:02:05.7]} 22. f3 {[%clk 0:02:29.1]}
22... g5 {[%clk 0:02:03.4]} 23. Rfc1 {[%clk 0:02:24.6]} 23... h5 {[%clk
0:02:02.8]} 24. Kf1 {[%clk 0:02:22.5]} 24... g4 {[%clk 0:02:02.7]} 25. hxg4
{[%clk 0:02:17.7]} 25... hxg4 {[%clk 0:02:03.6]} 26. Bg1 {[%clk 0:02:15]} 26...
gxf3 {[%clk 0:01:57.4]} 27. gxf3 {[%clk 0:02:02.2]} 27... Bh3+ {[%clk
0:01:56.4]} 0-1